[Event "Late-Titled-Tuesday-Blitz-January-23-2024"]
[Site "Chess.com"]
[Date "2024.01.23"]
[Round "8"]
[White "Zq1"]
[Black "Jarrahi2452"]
[Result "1/2-1/2"]
[WhiteElo "2499"]
[BlackElo "2656"]
[TimeControl "180+1"]
[EndTime "15:23:10 PST"]
[Termination "Game drawn by agreement"]

1. d4 {[%clk 0:03:00.9]} 1... d5 {[%clk 0:02:59.4]} 2. c4 {[%clk 0:03:00.7]}
2... c6 {[%clk 0:02:59.3]} 3. e3 {[%clk 0:02:59.9]} 3... Nf6 {[%clk 0:02:59.3]}
4. Nc3 {[%clk 0:02:59.9]} 4... Bf5 {[%clk 0:02:56.2]} 5. cxd5 {[%clk 0:02:59]}
5... cxd5 {[%clk 0:02:55.7]} 6. Qb3 {[%clk 0:02:59.1]} 6... Bc8 {[%clk
0:02:42.5]} 7. Nf3 {[%clk 0:02:57.9]} 7... e6 {[%clk 0:02:40.8]} 8. Bb5+ {[%clk
0:02:54.3]} 8... Bd7 {[%clk 0:02:38.3]} 9. O-O {[%clk 0:02:50.4]} 9... Nc6
{[%clk 0:02:36.7]} 10. Bd2 {[%clk 0:02:40.1]} 10... Bd6 {[%clk 0:02:36.3]} 11.
Rfc1 {[%clk 0:02:38.5]} 11... O-O {[%clk 0:02:35.3]} 12. h3 {[%clk 0:02:37.4]}
12... h6 {[%clk 0:02:34.4]} 13. a3 {[%clk 0:02:32.8]} 13... a6 {[%clk
0:02:32.2]} 14. Bd3 {[%clk 0:02:27.6]} 14... b5 {[%clk 0:02:22.5]} 15. Na2
{[%clk 0:02:21.4]} 15... Rc8 {[%clk 0:02:13.4]} 16. Qd1 {[%clk 0:02:13.7]} 16...
Qb6 {[%clk 0:02:03.4]} 17. Nb4 {[%clk 0:02:11.4]} 17... a5 {[%clk 0:02:00.8]}
18. Nxc6 {[%clk 0:02:10.9]} 18... Rxc6 {[%clk 0:02:00.5]} 19. Ne5 {[%clk
0:02:01]} 19... Rxc1 {[%clk 0:01:51.3]} 20. Rxc1 {[%clk 0:01:58.7]} 20... Rd8
{[%clk 0:01:42.2]} 21. Nxd7 {[%clk 0:01:56.8]} 21... Nxd7 {[%clk 0:01:41.5]} 22.
Qc2 {[%clk 0:01:52.6]} 22... b4 {[%clk 0:01:36.1]} 23. a4 {[%clk 0:01:47.5]}
23... Nf6 {[%clk 0:01:33.7]} 24. Qc6 {[%clk 0:01:42.6]} 24... Qb8 {[%clk
0:01:33.7]} 25. Qa6 {[%clk 0:01:29]} 25... Bc7 {[%clk 0:01:33]} 26. Qb5 {[%clk
0:01:25.5]} 26... Bb6 {[%clk 0:01:22.4]} 27. Rc6 {[%clk 0:01:22.8]} 27... Rd6
{[%clk 0:01:21.6]} 28. Rxd6 {[%clk 0:01:08.3]} 28... Qxd6 {[%clk 0:01:21.4]} 29.
g3 {[%clk 0:01:03.1]} 29... h5 {[%clk 0:01:18.7]} 30. Kg2 {[%clk 0:01:01.4]}
30... Bc7 {[%clk 0:01:16.5]} 31. Qa6 {[%clk 0:00:56.3]} 31... Qxa6 {[%clk
0:01:10.1]} 32. Bxa6 {[%clk 0:00:55.3]} 1/2-1/2

[Event "Late-Titled-Tuesday-Blitz-January-23-2024"]
[Site "Chess.com"]
[Date "2024.01.23"]
[Round "8"]
[White "Piotrek1979"]
[Black "Rawnsdale"]
[Result "0-1"]
[WhiteElo "2394"]
[BlackElo "2528"]
[TimeControl "180+1"]
[EndTime "15:23:11 PST"]
[Termination "Rawnsdale won on time"]

1. Nf3 {[%clk 0:03:00.9]} 1... d5 {[%clk 0:02:58.4]} 2. e3 {[%clk 0:03:00.6]}
2... e6 {[%clk 0:02:58.7]} 3. b3 {[%clk 0:03:00.6]} 3... Be7 {[%clk 0:02:58.6]}
4. Bb2 {[%clk 0:03:00.7]} 4... Bf6 {[%clk 0:02:55.7]} 5. d4 {[%clk 0:02:56.3]}
5... c5 {[%clk 0:02:55]} 6. Bd3 {[%clk 0:02:52.9]} 6... Ne7 {[%clk 0:02:52.9]}
7. O-O {[%clk 0:02:51.3]} 7... O-O {[%clk 0:02:52.7]} 8. Nbd2 {[%clk 0:02:49.6]}
8... Nbc6 {[%clk 0:02:51.6]} 9. Re1 {[%clk 0:02:43.1]} 9... Ng6 {[%clk 0:02:50]}
10. a3 {[%clk 0:02:34.3]} 10... Re8 {[%clk 0:02:48.2]} 11. Ra2 {[%clk
0:01:52.1]} 11... e5 {[%clk 0:02:45]} 12. Bxg6 {[%clk 0:01:50]} 12... hxg6
{[%clk 0:02:42.2]} 13. dxe5 {[%clk 0:01:44.5]} 13... Nxe5 {[%clk 0:02:42.1]} 14.
Bxe5 {[%clk 0:01:40.2]} 14... Bxe5 {[%clk 0:02:43]} 15. c4 {[%clk 0:01:39.8]}
15... Bc3 {[%clk 0:02:31.2]} 16. cxd5 {[%clk 0:01:04.3]} 16... Qxd5 {[%clk
0:02:27.1]} 17. Nc4 {[%clk 0:01:04.2]} 17... Qh5 {[%clk 0:02:24.2]} 18. Rf1
{[%clk 0:00:51]} 18... Bg4 {[%clk 0:02:21.5]} 19. h3 {[%clk 0:00:50.9]} 19...
Be6 {[%clk 0:02:19.2]} 20. Rc2 {[%clk 0:00:15.9]} 20... Bf6 {[%clk 0:02:17.1]}
21. Qe2 {[%clk 0:00:13.1]} 21... b6 {[%clk 0:02:11.5]} 22. a4 {[%clk 0:00:13.1]}
22... Red8 {[%clk 0:02:08.4]} 23. Rd1 {[%clk 0:00:12.9]} 23... g5 {[%clk
0:01:53.8]} 24. Rcd2 {[%clk 0:00:11.9]} 24... Rxd2 {[%clk 0:01:53.1]} 25. Rxd2
{[%clk 0:00:12.5]} 25... g4 {[%clk 0:01:53.4]} 26. hxg4 {[%clk 0:00:12]} 26...
Bxg4 {[%clk 0:01:54.3]} 27. Rd3 {[%clk 0:00:05.2]} 27... g6 {[%clk 0:01:54.1]}
28. Ncd2 {[%clk 0:00:05]} 28... Kg7 {[%clk 0:01:52.2]} 29. Qf1 {[%clk
0:00:04.9]} 29... Rh8 {[%clk 0:01:51.7]} 0-1

[Event "Late-Titled-Tuesday-Blitz-January-23-2024"]
[Site "Chess.com"]
[Date "2024.01.23"]
[Round "8"]
[White "FontVella8"]
[Black "Jumbo"]
[Result "0-1"]
[WhiteElo "2745"]
[BlackElo "2954"]
[TimeControl "180+1"]
[EndTime "15:23:25 PST"]
[Termination "Jumbo won by resignation"]

1. Nf3 {[%clk 0:03:00.9]} 1... Nf6 {[%clk 0:02:59.3]} 2. b3 {[%clk 0:03:00.3]}
2... g6 {[%clk 0:02:57]} 3. Bb2 {[%clk 0:03:01.2]} 3... Bg7 {[%clk 0:02:57.6]}
4. g3 {[%clk 0:03:01.3]} 4... O-O {[%clk 0:02:57.8]} 5. Bg2 {[%clk 0:03:01.8]}
5... d6 {[%clk 0:02:57.5]} 6. O-O {[%clk 0:03:01.7]} 6... e5 {[%clk 0:02:58]} 7.
c4 {[%clk 0:03:01.9]} 7... Re8 {[%clk 0:02:55.3]} 8. d3 {[%clk 0:03:00.1]} 8...
a5 {[%clk 0:02:49.4]} 9. a3 {[%clk 0:02:59.7]} 9... Nc6 {[%clk 0:02:47.5]} 10.
Qc2 {[%clk 0:02:59.6]} 10... d5 {[%clk 0:02:47.2]} 11. cxd5 {[%clk 0:02:57.5]}
11... Nxd5 {[%clk 0:02:48.1]} 12. Nc3 {[%clk 0:02:52.6]} 12... Be6 {[%clk
0:02:39.5]} 13. Ne4 {[%clk 0:02:50.1]} 13... Nd4 {[%clk 0:02:37.9]} 14. Nxd4
{[%clk 0:02:35.5]} 14... exd4 {[%clk 0:02:38.8]} 15. Nc5 {[%clk 0:02:36.1]}
15... Bc8 {[%clk 0:02:37.1]} 16. Rac1 {[%clk 0:02:25.8]} 16... c6 {[%clk
0:02:36.3]} 17. e4 {[%clk 0:01:56]} 17... dxe3 {[%clk 0:02:33.6]} 18. Bxg7
{[%clk 0:01:55.7]} 18... Kxg7 {[%clk 0:02:27.3]} 19. Bxd5 {[%clk 0:01:43.3]}
19... e2 {[%clk 0:02:20.1]} 20. Rfe1 {[%clk 0:01:38.1]} 20... Qxd5 {[%clk
0:02:19.3]} 21. Rxe2 {[%clk 0:01:34.3]} 21... Bh3 {[%clk 0:02:12.2]} 22. Qb2+
{[%clk 0:01:22.8]} 22... f6 {[%clk 0:02:04.4]} 23. Ne4 {[%clk 0:01:22.5]} 23...
Qf5 {[%clk 0:01:51.6]} 24. f4 {[%clk 0:01:14]} 24... Re6 {[%clk 0:01:51]} 25.
Rc5 {[%clk 0:00:41.4]} 25... Qg4 {[%clk 0:01:48.3]} 26. Nxf6 {[%clk 0:00:37.7]}
26... Qxe2 {[%clk 0:01:35.2]} 27. Nh5+ {[%clk 0:00:20.8]} 27... Kf8 {[%clk
0:01:35.2]} 28. Qg7+ {[%clk 0:00:18.4]} 28... Ke8 {[%clk 0:01:35.6]} 0-1

[Event "Late-Titled-Tuesday-Blitz-January-23-2024"]
[Site "Chess.com"]
[Date "2024.01.23"]
[Round "8"]
[White "Mikhail_Golubev"]
[Black "kingofthenil"]
[Result "1-0"]
[WhiteElo "2551"]
[BlackElo "2679"]
[TimeControl "180+1"]
[EndTime "15:23:27 PST"]
[Termination "Mikhail_Golubev won by checkmate"]

1. e4 {[%clk 0:03:00.9]} 1... Nc6 {[%clk 0:02:59.4]} 2. Nf3 {[%clk 0:03:00.3]}
2... d5 {[%clk 0:02:57.1]} 3. exd5 {[%clk 0:03:00]} 3... Qxd5 {[%clk 0:02:58]}
4. Nc3 {[%clk 0:03:00.1]} 4... Qh5 {[%clk 0:02:55.9]} 5. Nb5 {[%clk 0:02:48.8]}
5... Kd8 {[%clk 0:02:55.2]} 6. d4 {[%clk 0:02:44.1]} 6... Bg4 {[%clk 0:02:54.2]}
7. Be2 {[%clk 0:02:38.9]} 7... Bxf3 {[%clk 0:02:51.2]} 8. gxf3 {[%clk
0:02:38.8]} 8... Nf6 {[%clk 0:02:49.7]} 9. c4 {[%clk 0:02:20]} 9... e6 {[%clk
0:02:45.8]} 10. a3 {[%clk 0:02:05.7]} 10... a6 {[%clk 0:02:43.8]} 11. Nc3 {[%clk
0:02:05.4]} 11... Kc8 {[%clk 0:02:44.3]} 12. d5 {[%clk 0:02:00.2]} 12... exd5
{[%clk 0:02:44.4]} 13. cxd5 {[%clk 0:02:00.3]} 13... Na7 {[%clk 0:02:43.5]} 14.
Be3 {[%clk 0:01:55.9]} 14... Bd6 {[%clk 0:02:42.3]} 15. Rc1 {[%clk 0:01:53.7]}
15... Re8 {[%clk 0:02:42.5]} 16. Ne4 {[%clk 0:01:43.3]} 16... Nxe4 {[%clk
0:02:39.4]} 17. fxe4 {[%clk 0:01:43.8]} 17... Qh4 {[%clk 0:02:39]} 18. Rc4
{[%clk 0:01:10.2]} 18... Be5 {[%clk 0:02:15]} 19. d6 {[%clk 0:01:00.6]} 19...
Rd8 {[%clk 0:02:03.4]} 20. Bg4+ {[%clk 0:00:45.7]} 20... f5 {[%clk 0:01:48]} 21.
Rxc7+ {[%clk 0:00:25.7]} 21... Kb8 {[%clk 0:01:46.8]} 22. Qd5 {[%clk 0:00:25.5]}
22... Nc6 {[%clk 0:01:40.6]} 23. Rxc6 {[%clk 0:00:22.2]} 23... Qxg4 {[%clk
0:01:17.7]} 24. Rc7 {[%clk 0:00:18]} 24... Qxe4 {[%clk 0:01:18.1]} 25. Rxb7+
{[%clk 0:00:16.3]} 25... Kc8 {[%clk 0:01:18.8]} 26. Rc7+ {[%clk 0:00:16.2]}
26... Kb8 {[%clk 0:01:19.1]} 27. Qb3+ {[%clk 0:00:16.4]} 27... Qb7 {[%clk
0:01:15]} 28. Qxb7# {[%clk 0:00:16.3]} 1-0

[Event "Late-Titled-Tuesday-Blitz-January-23-2024"]
[Site "Chess.com"]
[Date "2024.01.23"]
[Round "8"]
[White "Nouali_Mohamed"]
[Black "BardArtem"]
[Result "0-1"]
[WhiteElo "2548"]
[BlackElo "2793"]
[TimeControl "180+1"]
[EndTime "15:23:32 PST"]
[Termination "BardArtem won on time"]

1. e4 {[%clk 0:02:59.4]} 1... c5 {[%clk 0:02:56.7]} 2. Nf3 {[%clk 0:02:59.4]}
2... d6 {[%clk 0:02:57.2]} 3. d4 {[%clk 0:02:59.9]} 3... cxd4 {[%clk 0:02:58.1]}
4. Nxd4 {[%clk 0:03:00.8]} 4... Nf6 {[%clk 0:02:58.8]} 5. Nc3 {[%clk 0:03:01.3]}
5... g6 {[%clk 0:02:57.9]} 6. Be3 {[%clk 0:03:01.5]} 6... Nc6 {[%clk 0:02:58.1]}
7. f3 {[%clk 0:03:00.7]} 7... h5 {[%clk 0:02:57.8]} 8. Qd2 {[%clk 0:03:00.4]}
8... Nxd4 {[%clk 0:02:58.1]} 9. Bxd4 {[%clk 0:02:58.3]} 9... Bh6 {[%clk
0:02:58.3]} 10. Be3 {[%clk 0:02:50.8]} 10... Bxe3 {[%clk 0:02:57.5]} 11. Qxe3
{[%clk 0:02:51.6]} 11... Be6 {[%clk 0:02:58]} 12. Bb5+ {[%clk 0:02:47]} 12...
Kf8 {[%clk 0:02:57.2]} 13. O-O {[%clk 0:02:26.1]} 13... Kg7 {[%clk 0:02:54.7]}
14. Ba4 {[%clk 0:02:14.2]} 14... Qa5 {[%clk 0:02:51.7]} 15. Bb3 {[%clk
0:02:12.6]} 15... Rac8 {[%clk 0:02:45.8]} 16. Kh1 {[%clk 0:01:47.8]} 16... h4
{[%clk 0:02:34.2]} 17. h3 {[%clk 0:01:18.7]} 17... Nh5 {[%clk 0:02:30.2]} 18.
Ne2 {[%clk 0:01:16.4]} 18... Qa6 {[%clk 0:02:28.8]} 19. Kh2 {[%clk 0:00:51]}
19... Bc4 {[%clk 0:02:21.7]} 20. Bxc4 {[%clk 0:00:35.4]} 20... Qxc4 {[%clk
0:02:22.6]} 21. c3 {[%clk 0:00:27.3]} 21... b5 {[%clk 0:02:15]} 22. f4 {[%clk
0:00:24]} 22... Qc5 {[%clk 0:02:08]} 23. Qf3 {[%clk 0:00:20.5]} 23... a5 {[%clk
0:02:05.1]} 24. a3 {[%clk 0:00:18.1]} 24... a4 {[%clk 0:02:05]} 25. Rad1 {[%clk
0:00:13.3]} 25... Nf6 {[%clk 0:02:04.7]} 26. Rd4 {[%clk 0:00:09.7]} 26... Rh5
{[%clk 0:02:01.2]} 27. Rfd1 {[%clk 0:00:08]} 27... Rch8 {[%clk 0:02:00]} 28. Rb4
{[%clk 0:00:07.3]} 28... e5 {[%clk 0:01:51.1]} 29. Rd3 {[%clk 0:00:03.4]} 29...
exf4 {[%clk 0:01:49.1]} 30. Nxf4 {[%clk 0:00:03.5]} 30... Rg5 {[%clk 0:01:49.7]}
31. Kh1 {[%clk 0:00:02.9]} 31... Rg3 {[%clk 0:01:49.9]} 32. Qd1 {[%clk
0:00:02.6]} 32... Re8 {[%clk 0:01:48.1]} 0-1

[Event "Late-Titled-Tuesday-Blitz-January-23-2024"]
[Site "Chess.com"]
[Date "2024.01.23"]
[Round "8"]
[White "Eloist"]
[Black "ChessSwole"]
[Result "0-1"]
[WhiteElo "2440"]
[BlackElo "2623"]
[TimeControl "180+1"]
[EndTime "15:23:41 PST"]
[Termination "ChessSwole won on time"]

1. e4 {[%clk 0:03:00.2]} 1... e5 {[%clk 0:02:59.8]} 2. Bc4 {[%clk 0:02:58.6]}
2... Nf6 {[%clk 0:02:59.7]} 3. d3 {[%clk 0:02:58.3]} 3... Nc6 {[%clk 0:02:58]}
4. Nf3 {[%clk 0:02:57.6]} 4... Bc5 {[%clk 0:02:55.4]} 5. O-O {[%clk 0:02:54.9]}
5... d6 {[%clk 0:02:54.7]} 6. c3 {[%clk 0:02:53]} 6... a5 {[%clk 0:02:54.2]} 7.
d4 {[%clk 0:02:38]} 7... Bb6 {[%clk 0:02:48.1]} 8. dxe5 {[%clk 0:02:35.4]} 8...
Nxe5 {[%clk 0:02:42.8]} 9. Nxe5 {[%clk 0:02:34.6]} 9... dxe5 {[%clk 0:02:43.7]}
10. Qxd8+ {[%clk 0:02:33.3]} 10... Kxd8 {[%clk 0:02:44.6]} 11. Bg5 {[%clk
0:02:16.6]} 11... Ke7 {[%clk 0:02:43.5]} 12. Nd2 {[%clk 0:02:13.2]} 12... c6
{[%clk 0:02:37.9]} 13. a4 {[%clk 0:01:53.6]} 13... Rd8 {[%clk 0:02:33.7]} 14.
Rad1 {[%clk 0:01:44.1]} 14... h6 {[%clk 0:02:24.4]} 15. Bh4 {[%clk 0:01:39.8]}
15... g5 {[%clk 0:02:22.5]} 16. Bg3 {[%clk 0:01:39.1]} 16... Bg4 {[%clk
0:02:22]} 17. Nf3 {[%clk 0:01:31]} 17... Bxf3 {[%clk 0:02:08.8]} 18. gxf3 {[%clk
0:01:28.8]} 18... Nd7 {[%clk 0:02:06.2]} 19. Rd2 {[%clk 0:01:13.9]} 19... Bc7
{[%clk 0:02:04.1]} 20. Rfd1 {[%clk 0:01:09.8]} 20... Nc5 {[%clk 0:02:02.3]} 21.
Rxd8 {[%clk 0:00:59.6]} 21... Rxd8 {[%clk 0:02:03.2]} 22. Rxd8 {[%clk 0:00:59]}
22... Kxd8 {[%clk 0:02:04.1]} 23. b3 {[%clk 0:00:48.7]} 23... Ke7 {[%clk
0:02:00.8]} 24. h4 {[%clk 0:00:48]} 24... f6 {[%clk 0:02:00]} 25. Kg2 {[%clk
0:00:41.6]} 25... b5 {[%clk 0:01:50.8]} 26. axb5 {[%clk 0:00:40.6]} 26... cxb5
{[%clk 0:01:51.7]} 27. Bxb5 {[%clk 0:00:33.6]} 27... Nxb3 {[%clk 0:01:52]} 28.
Kf1 {[%clk 0:00:20]} 28... Kd6 {[%clk 0:01:46]} 29. Ke2 {[%clk 0:00:19.5]} 29...
Kc5 {[%clk 0:01:44.9]} 30. Ba4 {[%clk 0:00:18.9]} 30... Kc4 {[%clk 0:01:44.5]}
31. h5 {[%clk 0:00:14.2]} 31... Kxc3 {[%clk 0:01:42.2]} 32. Bh2 {[%clk
0:00:10.1]} 32... Nc5 {[%clk 0:01:41.9]} 33. Bc6 {[%clk 0:00:08.7]} 33... a4
{[%clk 0:01:41.8]} 34. Bd5 {[%clk 0:00:07.8]} 34... Nb3 {[%clk 0:01:41]} 35. f4
{[%clk 0:00:06.5]} 35... gxf4 {[%clk 0:01:40.5]} 36. f3 {[%clk 0:00:06.5]} 36...
a3 {[%clk 0:01:39.5]} 0-1

[Event "Late-Titled-Tuesday-Blitz-January-23-2024"]
[Site "Chess.com"]
[Date "2024.01.23"]
[Round "8"]
[White "familijatop71"]
[Black "Rdeux42"]
[Result "0-1"]
[WhiteElo "2249"]
[BlackElo "2437"]
[TimeControl "180+1"]
[EndTime "15:23:41 PST"]
[Termination "Rdeux42 won on time"]

1. e4 {[%clk 0:03:00.9]} 1... d6 {[%clk 0:02:57.7]} 2. d4 {[%clk 0:03:00.1]}
2... Nf6 {[%clk 0:02:57.8]} 3. Nc3 {[%clk 0:03:00.1]} 3... Nbd7 {[%clk 0:02:58]}
4. Nf3 {[%clk 0:02:57.9]} 4... e5 {[%clk 0:02:58.4]} 5. Bc4 {[%clk 0:02:58.1]}
5... Be7 {[%clk 0:02:58.2]} 6. O-O {[%clk 0:02:58]} 6... O-O {[%clk 0:02:58.2]}
7. Re1 {[%clk 0:02:56.8]} 7... c6 {[%clk 0:02:58.2]} 8. a4 {[%clk 0:02:57]} 8...
b6 {[%clk 0:02:58.1]} 9. h3 {[%clk 0:02:53.6]} 9... a6 {[%clk 0:02:58]} 10. Be3
{[%clk 0:02:41.1]} 10... Bb7 {[%clk 0:02:57.3]} 11. d5 {[%clk 0:02:18.5]} 11...
cxd5 {[%clk 0:02:53.3]} 12. Bxd5 {[%clk 0:02:08.1]} 12... Bxd5 {[%clk
0:02:52.5]} 13. exd5 {[%clk 0:02:02.5]} 13... Qc7 {[%clk 0:02:44.8]} 14. Bg5
{[%clk 0:01:51.7]} 14... h6 {[%clk 0:02:40.8]} 15. Bxf6 {[%clk 0:01:48.3]} 15...
Bxf6 {[%clk 0:02:37.7]} 16. Ne4 {[%clk 0:01:47]} 16... Be7 {[%clk 0:02:37.1]}
17. c3 {[%clk 0:01:23]} 17... f5 {[%clk 0:02:37.1]} 18. Ng3 {[%clk 0:01:19.7]}
18... g6 {[%clk 0:02:37.6]} 19. Nd4 {[%clk 0:01:12]} 19... Nc5 {[%clk
0:02:34.3]} 20. Nc6 {[%clk 0:00:57.1]} 20... Kg7 {[%clk 0:02:30.6]} 21. b4
{[%clk 0:00:52]} 21... Nb7 {[%clk 0:02:26.6]} 22. c4 {[%clk 0:00:40.6]} 22...
Bf6 {[%clk 0:02:24.7]} 23. Rc1 {[%clk 0:00:36]} 23... h5 {[%clk 0:02:22.4]} 24.
Ne2 {[%clk 0:00:32.7]} 24... a5 {[%clk 0:02:21.7]} 25. b5 {[%clk 0:00:30.2]}
25... Nc5 {[%clk 0:02:15.6]} 26. f4 {[%clk 0:00:24.8]} 26... Rae8 {[%clk
0:02:12.1]} 27. fxe5 {[%clk 0:00:17.4]} 27... Bxe5 {[%clk 0:02:10.8]} 28. Ned4
{[%clk 0:00:14.8]} 28... Bxd4+ {[%clk 0:02:09.8]} 29. Qxd4+ {[%clk 0:00:14.5]}
29... Kh7 {[%clk 0:02:07.9]} 30. Rxe8 {[%clk 0:00:14]} 30... Rxe8 {[%clk
0:02:08.1]} 31. Qd2 {[%clk 0:00:11.8]} 31... Nb3 {[%clk 0:02:06.5]} 32. Qc2
{[%clk 0:00:09.2]} 32... Nxc1 {[%clk 0:02:06.4]} 33. Qxc1 {[%clk 0:00:10.1]}
33... Re4 {[%clk 0:02:05.7]} 34. Qc3 {[%clk 0:00:09]} 34... Qg7 {[%clk
0:02:04.1]} 35. Qd3 {[%clk 0:00:05.6]} 35... Qa1+ {[%clk 0:02:01.1]} 36. Kh2
{[%clk 0:00:05.5]} 36... h4 {[%clk 0:01:49]} 37. Nd8 {[%clk 0:00:04.3]} 37...
Qe1 {[%clk 0:01:44.7]} 38. Ne6 {[%clk 0:00:03.6]} 38... Qg3+ {[%clk 0:01:44.3]}
39. Qxg3 {[%clk 0:00:03.1]} 39... hxg3+ {[%clk 0:01:45.2]} 40. Kxg3 {[%clk
0:00:03.1]} 40... Rxc4 {[%clk 0:01:46.1]} 0-1

[Event "Late-Titled-Tuesday-Blitz-January-23-2024"]
[Site "Chess.com"]
[Date "2024.01.23"]
[Round "8"]
[White "MokshanovAlexey"]
[Black "wild3000"]
[Result "1-0"]
[WhiteElo "2645"]
[BlackElo "2463"]
[TimeControl "180+1"]
[EndTime "15:23:42 PST"]
[Termination "MokshanovAlexey won by resignation"]

1. e4 {[%clk 0:02:50.9]} 1... e6 {[%clk 0:01:15.2]} 2. d4 {[%clk 0:02:30.8]}
2... a6 {[%clk 0:01:16.1]} 3. Bd3 {[%clk 0:02:26.8]} 3... b5 {[%clk 0:01:16.2]}
4. Nf3 {[%clk 0:02:26.4]} 4... Bb7 {[%clk 0:01:16.8]} 5. O-O {[%clk 0:02:26.1]}
5... Be7 {[%clk 0:01:17.4]} 6. c3 {[%clk 0:02:26.2]} 6... Nf6 {[%clk 0:01:17.7]}
7. Nbd2 {[%clk 0:02:25.9]} 7... c5 {[%clk 0:01:17.8]} 8. Re1 {[%clk 0:02:25.8]}
8... d5 {[%clk 0:01:17.5]} 9. e5 {[%clk 0:02:25.8]} 9... Nfd7 {[%clk 0:01:17.5]}
10. Nf1 {[%clk 0:02:26]} 10... Nc6 {[%clk 0:01:18.4]} 11. Ng3 {[%clk 0:02:26.4]}
11... Qb6 {[%clk 0:01:18.4]} 12. Nh5 {[%clk 0:02:23.6]} 12... Bf8 {[%clk
0:01:17.4]} 13. Be3 {[%clk 0:02:15]} 13... c4 {[%clk 0:01:13.8]} 14. Bc2 {[%clk
0:02:14.7]} 14... b4 {[%clk 0:01:14.7]} 15. Bg5 {[%clk 0:02:11.9]} 15... a5
{[%clk 0:01:12.2]} 16. Qd2 {[%clk 0:02:02.9]} 16... a4 {[%clk 0:01:07.6]} 17.
Rab1 {[%clk 0:01:56.2]} 17... b3 {[%clk 0:01:07.7]} 18. axb3 {[%clk 0:01:53.1]}
18... cxb3 {[%clk 0:01:03.1]} 19. Bd3 {[%clk 0:01:52]} 19... Ba6 {[%clk
0:01:03.6]} 20. Bxa6 {[%clk 0:01:50.2]} 20... Qxa6 {[%clk 0:01:03.7]} 21. Qf4
{[%clk 0:01:50.1]} 21... Ra7 {[%clk 0:00:59.2]} 22. Ra1 {[%clk 0:01:46.4]} 22...
Qd3 {[%clk 0:00:58.5]} 23. Bh4 {[%clk 0:01:43.4]} 23... Qg6 {[%clk 0:00:56]} 24.
Ng3 {[%clk 0:01:39.5]} 24... Be7 {[%clk 0:00:49.9]} 25. Bxe7 {[%clk 0:01:36.5]}
25... Nxe7 {[%clk 0:00:50.1]} 26. Nd2 {[%clk 0:01:35.3]} 26... O-O {[%clk
0:00:42]} 27. Nxb3 {[%clk 0:01:33]} 27... Rb8 {[%clk 0:00:39.1]} 28. Nc5 {[%clk
0:01:32.1]} 28... Nxc5 {[%clk 0:00:38.7]} 29. dxc5 {[%clk 0:01:33]} 29... Rxb2
{[%clk 0:00:36]} 30. Rxa4 {[%clk 0:01:30.8]} 30... Rxa4 {[%clk 0:00:33.6]} 31.
Qxa4 {[%clk 0:01:31.7]} 31... h5 {[%clk 0:00:30.5]} 32. Qe8+ {[%clk 0:01:31.2]}
32... Kh7 {[%clk 0:00:30.5]} 33. Qxe7 {[%clk 0:01:29.8]} 33... Rb1 {[%clk
0:00:30.6]} 34. Rxb1 {[%clk 0:01:25.3]} 34... Qxb1+ {[%clk 0:00:30.1]} 35. Nf1
{[%clk 0:01:25.9]} 35... Qc2 {[%clk 0:00:27.2]} 36. c6 {[%clk 0:01:24.4]} 36...
Qxc3 {[%clk 0:00:26.6]} 37. Qd7 {[%clk 0:01:24.8]} 1-0

[Event "Late-Titled-Tuesday-Blitz-January-23-2024"]
[Site "Chess.com"]
[Date "2024.01.23"]
[Round "8"]
[White "DraningWaterHi"]
[Black "Sanyura"]
[Result "0-1"]
[WhiteElo "2214"]
[BlackElo "2622"]
[TimeControl "180+1"]
[EndTime "15:23:45 PST"]
[Termination "Sanyura won by resignation"]

1. d4 {[%clk 0:02:59.9]} 1... Nf6 {[%clk 0:02:33.4]} 2. c4 {[%clk 0:02:58.8]}
2... g6 {[%clk 0:02:33.1]} 3. g3 {[%clk 0:02:57.6]} 3... d6 {[%clk 0:02:33.4]}
4. Bg2 {[%clk 0:02:58]} 4... Bg7 {[%clk 0:02:34]} 5. Nf3 {[%clk 0:02:57.3]} 5...
O-O {[%clk 0:02:34.5]} 6. O-O {[%clk 0:02:57.9]} 6... Nbd7 {[%clk 0:02:34.2]} 7.
Nc3 {[%clk 0:02:51.7]} 7... e5 {[%clk 0:02:34.6]} 8. e4 {[%clk 0:02:52.2]} 8...
exd4 {[%clk 0:02:35.5]} 9. Nxd4 {[%clk 0:02:52.9]} 9... Nc5 {[%clk 0:02:34.4]}
10. Re1 {[%clk 0:02:51.9]} 10... Re8 {[%clk 0:02:34.5]} 11. Bf4 {[%clk
0:02:52.3]} 11... Ng4 {[%clk 0:02:33.6]} 12. h3 {[%clk 0:02:47.2]} 12... Ne5
{[%clk 0:02:33.8]} 13. Bf1 {[%clk 0:02:47.7]} 13... Ned3 {[%clk 0:02:25]} 14.
Bxd3 {[%clk 0:02:44.3]} 14... Bxd4 {[%clk 0:02:24.5]} 15. Bc2 {[%clk 0:02:42.9]}
15... Bxc3 {[%clk 0:02:16.2]} 16. bxc3 {[%clk 0:02:43.8]} 16... Bxh3 {[%clk
0:02:15.7]} 17. f3 {[%clk 0:02:37.6]} 17... Be6 {[%clk 0:02:12.8]} 18. Kf2
{[%clk 0:02:34.9]} 18... Qf6 {[%clk 0:02:08.1]} 19. Qd4 {[%clk 0:02:31.1]} 19...
Nd7 {[%clk 0:02:06.2]} 20. Rab1 {[%clk 0:02:28.3]} 20... b6 {[%clk 0:02:05.1]}
21. Bd3 {[%clk 0:02:25.3]} 21... Ne5 {[%clk 0:02:03]} 22. Kg2 {[%clk 0:02:14.9]}
22... Rad8 {[%clk 0:02:01.9]} 23. a4 {[%clk 0:02:11.7]} 23... c5 {[%clk
0:01:49.8]} 24. Qe3 {[%clk 0:02:09.8]} 24... Nc6 {[%clk 0:01:21.6]} 25. Bg5
{[%clk 0:02:07.2]} 25... Qxc3 {[%clk 0:01:21.5]} 26. Bxd8 {[%clk 0:02:04.9]}
26... Rxd8 {[%clk 0:01:21.8]} 27. Rh1 {[%clk 0:02:02.8]} 27... Bxc4 {[%clk
0:01:12.1]} 28. Rbd1 {[%clk 0:02:02.8]} 28... Ne5 {[%clk 0:00:57.9]} 29. Qg5
{[%clk 0:01:57.1]} 29... Re8 {[%clk 0:00:57.9]} 30. Bxc4 {[%clk 0:01:56.5]}
30... Qxf3+ {[%clk 0:00:55.9]} 31. Kh2 {[%clk 0:01:54.6]} 31... Nxc4 {[%clk
0:00:35.9]} 32. Rhf1 {[%clk 0:01:54]} 32... Qe2+ {[%clk 0:00:35]} 33. Kh3 {[%clk
0:01:54.3]} 33... Ne3 {[%clk 0:00:33.3]} 34. Qf6 {[%clk 0:01:17.6]} 34... Qg2+
{[%clk 0:00:30.9]} 35. Kh4 {[%clk 0:01:17.5]} 35... Qh2+ {[%clk 0:00:31.1]} 36.
Kg5 {[%clk 0:01:18]} 36... Qxg3+ {[%clk 0:00:21.9]} 37. Kh6 {[%clk 0:01:17.4]}
37... Ng4+ {[%clk 0:00:19.2]} 0-1